[Event "MCCT Oslo Esports Cup 2022"]
[Site "Oslo"]
[Date "2022.04.20"]
[Round "6.3"]
[White "Duda, Jan-Krzysztof"]
[Black "Praggnanandhaa R"]
[Result "1/2-1/2"]
[ECO "A21"]
[WhiteElo "2750"]
[BlackElo "2624"]
[Annotator "TA"]
[PlyCount "63"]
[EventDate "2022.04.14"]
[EventType "tourn"]
[EventCountry "NOR"]
[SourceTitle "playchess.com"]
[Source "ChessBase"]
[SourceQuality "1"]
[TimeControl "900+10"]

{[%evp 9,63,17,17,18,15,12,18,14,24,21,25,17,18,15,40,40,53,39,39,38,34,41,44,40,47,30,51,44,35,5,5,13,46,53,121,115,109,111,109,116,124,117,121,116,102,83,225,189,245,0,0,0,224,0,0,0]} 1. c4 {[%emt 0:00:00]} e5 {[%emt 0:00:00]} 2. Nc3 {[%emt 0:00:02]} Bb4 {[%emt 0:00:07]} 3. Nd5 {[%emt 0:00:04]} Be7 {[%emt 0:00:04]} 4. d4 {[%emt 0:00:09]} exd4 {[%emt 0:00:09]} 5. Qxd4 {[%emt 0:00:00]} Nf6 {[%emt 0:00:01]} 6. Nxe7 {[%emt 0:00:25] A21: English Opening: 1...e5 2 Nc3.} Qxe7 {[%emt 0:00:01]} 7. Bg5 {[%emt 0:00:03] 7.Qe3 is not played anymore.} Nc6 {[%emt 0:00:05]} 8. Qc3 {[%emt 0:00:14]} d6 {[%emt 0:00:16]} 9. Bxf6 {[%emt 0:00:34]} Qxf6 {[%emt 0:00:12]} 10. Qxf6 {[%emt 0:00:02]} gxf6 {[%emt 0:00:00]} 11. e3 {[%emt 0:00:07] [#]} Rg8 $146 {[%emt 0:00:06]} ({Predecessor:} 11... Be6 12. Rc1 Ke7 13. Ne2 Ne5 14. Ng3 Rhg8 15. Be2 c5 16. O-O a6 17. f4 Nc6 {1-0 (33) Afanasiev,N (2548)-Agmanov,Z (2425) Cheliabinsk 2021}) 12. Ne2 {[%emt 0:00:05]} Be6 {[%emt 0:00:22]} 13. Nc3 {[%emt 0:00:09]} O-O-O {[%emt 0:00:41]} 14. O-O-O {[%emt 0:00:18]} Ne7 {[%emt 0:01:08]} 15. g3 {[%emt 0:02:12]} d5 {[%emt 0:00:52]} 16. c5 {[%emt 0:00:43]} b6 {[%emt 0:01:14]} 17. b4 {[%emt 0:01:44][%cal Bb2b4,Bb4b5][%mdl 32]} Nc6 {[%emt 0:01:23][%cal Be7c6,Bc6b4,Bb4a2][%mdl 32]} 18. b5 {[%emt 0:01:25]} d4 {[%emt 0:03:20]} 19. Ne4 {[%emt 0:01:25]} Nb4 {[%emt 0:01:31]} 20. exd4 {[%emt 0:00:24]} Nxa2+ {[%emt 0:01:02]} 21. Kb2 {[%emt 0:00:05]} f5 {[%emt 0:00:08]} (21... Nb4 $1 $14) 22. Nf6 $16 {[%emt 0:01:02][%csl LRg8,LRh7]} Rg6 {[%emt 0:00:11] [#]} 23. d5 $1 $36 {[%emt 0:00:38][%cal Od5e6][%mdl 2048] White has strong initiative.} Rxf6 {[%emt 0:00:41]} 24. Bc4 {[%emt 0:00:03]} Nb4 {[%emt 0:01:14]} 25. dxe6 {[%emt 0:00:03]} fxe6 {[%emt 0:00:04]} 26. Rxd8+ {[%emt 0:00:43]} Kxd8 {[%emt 0:00:02][%mdl 4096] Endgame KRB-KRN} 27. Rd1+ {[%emt 0:00:00]} Ke7 {[%emt 0:01:06]} (27... Kc8 $16) 28. c6 $18 {[%emt 0:00:47][%mdl 1024] Strongly threatening Rd7+. White has strong compensation.} Rf7 {[%emt 0:00:06]} (28... Nd5 {keeps fighting.}) 29. Re1 $2 {[%emt 0:00:57]} (29. Rd7+ $18 Kf6 30. Kc3 Nd5+ 31. Bxd5 exd5 32. Rxd5) 29... Rf6 $11 {[%emt 0:00:33]} 30. Rd1 $2 {[%emt 0:01:18]} (30. Kc3 $11 a5 31. bxa6 Nxc6 32. f4) 30... Rf7 $18 {[%emt 0:00:52]} 31. Re1 $2 {[%emt 0:00:15]} ({White has to play} 31. Rd7+ $18 Kf6 32. Kc3 Nd5+ 33. Bxd5 exd5 34. Rxd5) 31... Rf6 $11 {[%emt 0:00:24]} 32. Rd1 {[%emt 0:00:02] Weighted Error Value: White=0.17 (very precise) /Black=0.16 (very precise)} 1/2-1/2

[Event "MCCT Oslo Esports Cup 2022"]
[Site "Oslo"]
[Date "2022.04.20"]
[Round "6.3"]
[White "Van Foreest, Jorden"]
[Black "Mamedyarov, Shakhriyar"]
[Result "1/2-1/2"]
[ECO "C47"]
[WhiteElo "2714"]
[BlackElo "2771"]
[Annotator "TA"]
[PlyCount "176"]
[EventDate "2022.04.14"]
[EventType "tourn"]
[EventCountry "NOR"]
[SourceTitle "playchess.com"]
[Source "ChessBase"]
[SourceQuality "1"]
[TimeControl "900+10"]

{[%evp 66,176,175,175,331,331,331,298,344,174,174,174,174,174,174,174,174,174,174,174,174,174,174,174,174,174,247,174,174,93,175,0,174,141,174,174,279,279,279,279,279,279,279,279,279,279,279,247,247,247,247,247,247,247,247,247,247,247,247,247,247,247,247,247,247,247,247,247,247,0,247,0,8,0,247,0,0,0,0,0,0,0,0,0,0,0,0,0,0,0,0,0,0,0,0,0,0,0,0,0,0,0,0,0,0,0,0,0,0,0,0,0,0]} 1. e4 {[%emt 0:00:00]} e5 {[%emt 0:00:00]} 2. Nf3 {[%emt 0:00:02]} Nc6 {[%emt 0:00:01]} 3. Nc3 {[%emt 0:00:06]} Nf6 {[%emt 0:00:02]} 4. d4 {[%emt 0:00:09]} exd4 {[%emt 0:00:03]} 5. Nxd4 {[%emt 0:00:02]} Bb4 {[%emt 0:00:01]} 6. Nxc6 {[%emt 0:00:06]} bxc6 {[%emt 0:00:00]} 7. Bd3 {[%emt 0:00:01]} d5 {[%emt 0:00:03]} 8. exd5 {[%emt 0:00:06]} O-O {[%emt 0:00:03]} 9. O-O {[%emt 0:00:03]} Bg4 {[%emt 0:00:05]} 10. f3 {[%emt 0:00:33]} Bh5 {[%emt 0:00:01]} 11. Bg5 {[%emt 0:00:21]} Qd6 {[%emt 0:00:34]} 12. Qe1 {[%emt 0:00:19]} cxd5 {[%emt 0:01:59]} 13. Qh4 {[%emt 0:02:08]} Bxc3 {[%emt 0:00:34]} 14. bxc3 {[%emt 0:00:07]} Bg6 {[%emt 0:00:01]} 15. Bxf6 {[%emt 0:00:03]} Qxf6 {[%emt 0:00:01]} 16. Qxf6 {[%emt 0:00:02]} gxf6 {[%emt 0:00:00]} 17. Rab1 {[%emt 0:00:29]} Rfe8 {[%emt 0:00:27]} 18. Kf2 {[%emt 0:02:04]} Re6 {[%emt 0:00:06]} 19. Rfe1 {[%emt 0:00:34]} Rc6 {[%emt 0:01:15]} 20. Rb3 {[%emt 0:00:23]} Kf8 {[%emt 0:01:38]} 21. g4 {[%emt 0:02:23]} Bxd3 {[%emt 0:01:37]} 22. cxd3 {[%emt 0:00:00]} Ra6 {[%emt 0:00:01]} 23. Re2 {[%emt 0:00:54]} Re8 {[%emt 0:00:03]} 24. Rc2 {[%emt 0:00:51]} Rb6 {[%emt 0:00:49]} 25. Ra3 {[%emt 0:00:21]} a6 {[%emt 0:00:02]} 26. Ra5 {[%emt 0:00:04]} c6 {[%emt 0:00:15]} 27. Re2 {[%emt 0:00:23]} Re6 {[%emt 0:00:55]} 28. c4 {[%emt 0:00:06]} Ke7 {[%emt 0:05:30]} 29. cxd5 {[%emt 0:00:16]} cxd5 {[%emt 0:00:05]} 30. Rxd5 {[%emt 0:00:14]} Rxe2+ {[%emt 0:00:04]} 31. Kxe2 {[%emt 0:00:01]} Rb2+ {[%emt 0:00:01]} 32. Ke3 {[%emt 0:00:00]} Rxa2 {[%emt 0:00:43]} 33. Rh5 {[%emt 0:00:03]} a5 {[%emt 0:00:00]} 34. Rxh7 {[%emt 0:00:06]} a4 $2 {[%emt 0:00:01]} (34... Kf8 35. Rh5 a4) 35. Rh8 $18 {[%emt 0:00:46]} a3 {[%emt 0:00:24]} 36. Ra8 {[%emt 0:03:22]} f5 {[%emt 0:01:34]} 37. gxf5 {[%emt 0:00:12]} (37. g5 $142) 37... Kf6 $18 {[%emt 0:00:07]} 38. Kf4 {[%emt 0:00:03]} Ra1 {[%emt 0:00:01]} 39. Ra6+ {[%emt 0:00:08]} Kg7 {[%emt 0:00:02]} 40. Ke5 {[%emt 0:00:31]} a2 {[%emt 0:00:02]} 41. Kf4 {[%emt 0:02:30]} Rd1 {[%emt 0:00:22]} 42. Rxa2 {[%emt 0:00:02]} Rxd3 {[%emt 0:00:01]} 43. Ra4 {[%emt 0:00:46]} Rd1 {[%emt 0:00:15]} 44. Kg5 {[%emt 0:00:03]} Rd6 {[%emt 0:00:23]} 45. Rg4 {[%emt 0:00:10]} Rh6 {[%emt 0:01:03]} (45... Rd5 $142 46. h4 f6+ 47. Kf4+ Kf7) 46. h4 {[%emt 0:00:13]} Rb6 {[%emt 0:00:31]} 47. Rf4 {[%emt 0:00:02]} (47. f4 $18) 47... Ra6 {[%emt 0:00:05]} (47... Rb3 $16 48. Kg4 (48. f6+ Kh7 $16) 48... Rb1) 48. Rg4 {[%emt 0:00:11]} Rb6 $1 {[%emt 0:00:01]} 49. Rc4 {[%emt 0:00:03]} Ra6 {[%emt 0:00:10]} 50. Rc7 {[%emt 0:00:01]} Ra1 {[%emt 0:00:10]} (50... Rb6 $142 51. Rc5 f6+ 52. Kg4 Rb4+ 53. Kg3 Rb7) 51. f6+ $18 {[%emt 0:00:05]} Kg8 {[%emt 0:00:01]} 52. Kh6 {[%emt 0:00:14]} Ra8 {[%emt 0:00:04]} 53. Rc4 {[%emt 0:00:04]} Kh8 {[%emt 0:00:02]} 54. Rc5 {[%emt 0:00:06]} Rb8 {[%emt 0:00:02]} 55. Rc7 {[%emt 0:00:14]} Kg8 {[%emt 0:00:02]} 56. f4 {[%emt 0:00:08]} Ra8 {[%emt 0:00:01]} 57. Rc5 {[%emt 0:00:21]} Kh8 {[%emt 0:00:02]} 58. Kg5 {[%emt 0:00:29]} Kh7 {[%emt 0:00:10]} 59. Rc7 {[%emt 0:00:04]} Ra5+ {[%emt 0:00:05]} 60. f5 {[%emt 0:00:09]} Kg8 {[%emt 0:00:03]} 61. h5 {[%emt 0:00:20]} Ra1 {[%emt 0:00:40]} 62. Kh6 $1 {[%emt 0:00:18]} Ra8 {[%emt 0:00:02]} 63. Rc2 {[%emt 0:00:17]} Kh8 {[%emt 0:00:01]} 64. Kg5 {[%emt 0:00:04]} Ra1 {[%emt 0:00:24]} 65. Rc8+ {[%emt 0:00:10]} Kh7 {[%emt 0:00:01] [#]} 66. Rf8 $1 {[%emt 0:00:03]} Ra7 {[%emt 0:00:02]} 67. Kf4 $2 {[%emt 0:00:10]} (67. Rd8 $18) 67... Rb7 $2 {[%emt 0:00:20] [#]} (67... Ra4+ $1 $11 68. Kg5 Ra7) 68. Re8 $2 {[%emt 0:00:07]} (68. Rd8 $1 $18) 68... Rb1 {[%emt 0:00:34]} 69. Re7 {[%emt 0:00:10]} Kg8 $2 {[%emt 0:00:02]} (69... Rb4+ $1 $11 {and Black is okay.} 70. Kg5 Kg8) 70. Re2 $2 {[%emt 0:00:01]} (70. Ra7 $18) 70... Kh7 $1 $11 {[%emt 0:00:17]} 71. Rg2 {[%emt 0:00:23]} Kh6 {[%emt 0:00:41]} 72. Rg8 {[%emt 0:00:05]} Rb4+ {[%emt 0:00:03]} 73. Ke5 {[%emt 0:00:02]} Kxh5 {[%emt 0:00:04]} 74. Kd6 {[%emt 0:00:20]} Rb7 {[%emt 0:00:01]} 75. Rg2 {[%emt 0:00:25]} Ra7 {[%emt 0:00:03]} 76. Rg1 {[%emt 0:00:11]} Kh6 {[%emt 0:00:05]} 77. Ke5 {[%emt 0:00:19]} Ra5+ {[%emt 0:00:09]} 78. Kd6 {[%emt 0:00:01]} Ra7 {[%emt 0:00:02]} 79. Rg7 {[%emt 0:00:00]} Kh5 {[%emt 0:00:14]} 80. Kd5 {[%emt 0:00:11]} Kh6 {[%emt 0:00:03]} 81. Kc5 {[%emt 0:00:07]} Ra5+ {[%emt 0:00:07]} 82. Kd6 {[%emt 0:00:01]} Ra7 {[%emt 0:00:02]} 83. Ke5 {[%emt 0:00:12]} Kh5 {[%emt 0:00:13]} 84. Rg8 {[%emt 0:00:09]} Ra5+ {[%emt 0:00:07]} 85. Kf4 {[%emt 0:00:05]} Ra4+ {[%emt 0:00:02]} 86. Ke5 {[%emt 0:00:03]} Ra5+ {[%emt 0:00:01]} 87. Kf4 {[%emt 0:00:05]} Ra4+ {[%emt 0:00:01]} 88. Ke5 {[%emt 0:00:01]} Ra5+ {[%emt 0:00:01]} 1/2-1/2

[Event "MCCT Oslo Esports Cup 2022"]
[Site "Oslo"]
[Date "2022.04.20"]
[Round "6.4"]
[White "Mamedyarov, Shakhriyar"]
[Black "Van Foreest, Jorden"]
[Result "1-0"]
[ECO "D71"]
[WhiteElo "2771"]
[BlackElo "2714"]
[Annotator "TA"]
[PlyCount "143"]
[EventDate "2022.04.14"]
[EventType "tourn"]
[EventCountry "NOR"]
[SourceTitle "playchess.com"]
[Source "ChessBase"]
[SourceQuality "1"]
[TimeControl "900+10"]

{[%evp 9,143,0,12,16,17,14,14,17,9,11,55,32,43,17,28,15,18,16,22,13,20,16,35,26,25,25,30,0,0,0,0,0,0,0,10,10,10,10,0,0,0,0,0,0,10,10,10,10,10,10,10,10,10,10,10,10,10,0,0,0,0,0,0,0,0,0,49,0,0,0,0,0,0,0,8,8,8,8,8,0,0,0,0,0,0,0,0,0,0,-42,0,0,0,-35,0,0,0,0,0,0,0,0,0,0,0,0,0,0,0,0,8,8,8,8,1177,1130,29973,29974,29973,29975,29975,29976,29977,29978,29978,29979,29981,29978,29978,29979,29979,29979,29979,29980,29980,29981]} 1. d4 {[%emt 0:00:00]} Nf6 {[%emt 0:00:00]} 2. c4 {[%emt 0:00:01]} g6 {[%emt 0:00:02]} 3. g3 {[%emt 0:00:00]} c6 {[%emt 0:00:15]} 4. Bg2 {[%emt 0:00:04]} d5 {[%emt 0:00:02]} 5. Qa4 {[%emt 0:00:00]} Nfd7 {[%emt 0:00:17]} 6. cxd5 {[%emt 0:00:02]} Nb6 {[%emt 0:00:01]} 7. Qd1 {[%emt 0:00:01]} cxd5 {[%emt 0:00:01]} 8. a4 {[%emt 0:00:18]} Bg7 {[%emt 0:00:50]} 9. Nc3 {[%emt 0:00:03]} e6 {[%emt 0:01:24]} 10. e3 {[%emt 0:00:21]} Nc6 {[%emt 0:00:07]} 11. Nge2 {[%emt 0:00:03]} O-O {[%emt 0:00:06]} 12. O-O {[%emt 0:00:03]} Nc4 {[%emt 0:02:27]} 13. b3 {[%emt 0:00:25]} Nd6 {[%emt 0:00:01]} 14. Ba3 {[%emt 0:00:00]} Re8 {[%emt 0:00:20]} 15. Rc1 {[%emt 0:00:08]} Bf8 {[%emt 0:00:49]} 16. Nf4 {[%emt 0:00:03]} Bd7 {[%emt 0:00:11]} 17. Nd3 {[%emt 0:00:32]} Rc8 {[%emt 0:00:06]} 18. Nc5 {[%emt 0:00:13]} b6 {[%emt 0:00:32]} 19. Nxd7 {[%emt 0:00:03]} Qxd7 {[%emt 0:00:00]} 20. Re1 {[%emt 0:00:35]} a5 {[%emt 0:00:28]} 21. Bf1 {[%emt 0:00:11]} Nb4 {[%emt 0:00:20]} 22. Bxb4 {[%emt 0:01:47]} (22. Qd2 {with more complications.} h5 23. Red1 Red8 24. Bxb4 axb4 25. Nb5) 22... axb4 {[%emt 0:00:02]} 23. Bb5 {[%emt 0:00:00]} Nxb5 {[%emt 0:01:32]} 24. Nxb5 {[%emt 0:00:00]} Rxc1 {[%emt 0:00:02]} 25. Qxc1 {[%emt 0:00:00]} Rc8 {[%emt 0:00:01]} 26. Qb1 {[%emt 0:00:02]} h5 {[%emt 0:00:10]} 27. h4 {[%emt 0:00:04]} Be7 {[%emt 0:00:13]} 28. Rc1 {[%emt 0:00:06]} Kg7 {[%emt 0:00:32]} 29. Rc2 {[%emt 0:00:03]} Bf6 {[%emt 0:01:06]} 30. Qc1 {[%emt 0:00:10]} Rxc2 {[%emt 0:00:02]} 31. Qxc2 {[%emt 0:00:00]} Bd8 {[%emt 0:00:11]} 32. Kg2 {[%emt 0:00:12]} Kg8 {[%emt 0:00:13]} 33. f3 {[%emt 0:00:25]} f5 {[%emt 0:00:13]} 34. Kf2 {[%emt 0:00:40]} Kg7 {[%emt 0:00:02]} 35. Ke2 {[%emt 0:00:04]} Kf7 {[%emt 0:00:07]} 36. Qd2 {[%emt 0:02:19]} Be7 {[%emt 0:00:03]} 37. e4 {[%emt 0:00:07]} Qc6 {[%emt 0:00:56]} (37... fxe4 $11 38. fxe4 e5) 38. exf5 {[%emt 0:01:23]} (38. e5 $14) 38... exf5 $11 {[%emt 0:00:02]} 39. Kd3 {[%emt 0:00:01]} Qe6 {[%emt 0:00:14]} 40. Kc2 {[%emt 0:00:10]} Qc8+ {[%emt 0:00:10]} 41. Kd1 {[%emt 0:00:03]} Qb8 {[%emt 0:00:11]} 42. f4 {[%emt 0:00:39]} Qc8 {[%emt 0:01:03]} 43. Qe2 {[%emt 0:00:09]} Qe6 {[%emt 0:00:57]} 44. Qe5 {[%emt 0:01:39]} Bf6 {[%emt 0:00:19]} 45. Qc7+ {[%emt 0:00:21]} Kf8 {[%emt 0:00:36]} 46. Qb8+ {[%emt 0:01:20]} Kg7 {[%emt 0:00:07]} 47. Qc7+ {[%emt 0:01:10]} Kf8 {[%emt 0:00:15]} 48. a5 {[%emt 0:00:29]} bxa5 {[%emt 0:00:18]} 49. Qxa5 {[%emt 0:00:01]} Be7 {[%emt 0:01:00]} 50. Qa8+ {[%emt 0:00:36]} Kg7 {[%emt 0:00:15]} 51. Qb8 {[%emt 0:00:01]} Bf6 {[%emt 0:00:34]} (51... Qe4 $5 {[%cal Re4d3]} 52. Qe5+ Kf7 53. Nd6+ (53. Nc7 $2 Qd3+ 54. Kc1 Qc3+ 55. Kd1 Qxb3+ 56. Kc1 Qa3+ 57. Kb1 b3 $19) 53... Bxd6 54. Qxd6 Qd3+ 55. Kc1 Qe3+ 56. Kd1 Qxb3+ 57. Kc1 Qc4+ 58. Kb1 Qd3+ 59. Kc1 Qe3+ 60. Kb2 Qf2+ 61. Kc1 Qe3+ 62. Kc2 Qc3+ 63. Kb1 Qe1+ 64. Kb2 Qf2+ 65. Kc1 Qe3+ $15) 52. Qc7+ {[%emt 0:00:08]} Kh6 {[%emt 0:00:11]} 53. Nd6 {[%emt 0:00:33]} Be7 {[%emt 0:00:02]} (53... Bxd4 $2 54. Nf7+ Qxf7 55. Qxf7 $18) 54. Qc8 {[%emt 0:00:02]} Qxc8 {[%emt 0:01:24]} (54... Qf6 $5 55. Nb5 Bf8 $11) 55. Nxc8 {[%emt 0:00:02]} Bf6 {[%emt 0:00:06]} 56. Ke2 {[%emt 0:00:01]} ({Reject} 56. Nb6 Bxd4 57. Nxd5 Bf2 58. Nxb4 Bxg3 $17) 56... Bxd4 {[%emt 0:00:06] And now ...Bc5 would win.} 57. Ne7 {[%emt 0:00:00]} Kg7 {[%emt 0:00:02]} 58. Nxd5 {[%emt 0:00:01]} Bc5 {[%emt 0:00:00]} 59. Nc7 {[%emt 0:00:01] Intending Ne6+ and mate.} Kf7 {[%emt 0:00:56] Inhibits Ne6.} 60. Na6 {[%emt 0:00:00]} Bd6 {[%emt 0:00:03]} 61. Kd3 {[%emt 0:00:01]} Ke6 $2 {[%emt 0:00:50][%mdl 8192]} (61... g5 $11) 62. Kc4 $18 {[%emt 0:00:01]} g5 {[%emt 0:00:01]} 63. hxg5 {[%emt 0:03:52]} h4 {[%emt 0:00:00]} 64. gxh4 {[%emt 0:00:03]} Bxf4 {[%emt 0:00:00]} 65. Nxb4 {[%emt 0:00:14]} Bd6 {[%emt 0:01:49]} 66. Nc6 {[%emt 0:00:28]} f4 {[%emt 0:00:19]} 67. Nd4+ {[%emt 0:00:03]} Ke5 {[%emt 0:00:00]} 68. Kd3 {[%emt 0:01:00]} Bc5 {[%emt 0:00:04]} 69. Nf3+ {[%emt 0:00:06]} Kf5 {[%emt 0:00:02]} 70. h5 {[%emt 0:00:05]} Be7 {[%emt 0:00:11]} 71. h6 {[%emt 0:00:10]} Bf8 {[%emt 0:00:05]} 72. b4 {[%emt 0:00:06]} 1-0

[Event "MCCT Oslo Esports Cup 2022"]
[Site "Oslo"]
[Date "2022.04.20"]
[Round "6.5"]
[White "Van Foreest, Jorden"]
[Black "Mamedyarov, Shakhriyar"]
[Result "1/2-1/2"]
[ECO "C54"]
[WhiteElo "2714"]
[BlackElo "2771"]
[Annotator "TA"]
[PlyCount "179"]
[EventDate "2022.04.14"]
[EventType "tourn"]
[EventCountry "NOR"]
[SourceTitle "playchess.com"]
[Source "ChessBase"]
[SourceQuality "1"]
[TimeControl "300+3"]

{[%evp 103,179,0,0,0,0,0,0,0,0,0,0,0,0,0,0,0,0,0,0,0,0,0,0,0,0,0,0,0,0,0,0,0,0,0,0,0,0,0,0,0,0,0,0,0,0,0,0,0,0,0,0,0,0,0,0,0,0,0,0,0,0,0,0,0,0,0,0,0,0,0,0,0,0,0,0,0,0,0]} 1. e4 {[%emt 0:00:00]} e5 {[%emt 0:00:00]} 2. Nf3 {[%emt 0:00:02]} Nc6 {[%emt 0:00:01]} 3. Bc4 {[%emt 0:00:00]} Bc5 {[%emt 0:00:02]} 4. c3 {[%emt 0:00:02]} Nf6 {[%emt 0:00:01]} 5. d3 {[%emt 0:00:01]} O-O {[%emt 0:00:01]} 6. O-O {[%emt 0:00:06]} d5 {[%emt 0:00:02]} 7. exd5 {[%emt 0:00:00]} Nxd5 {[%emt 0:00:00]} 8. Nbd2 {[%emt 0:00:21]} Nb6 {[%emt 0:00:11]} 9. Bb5 {[%emt 0:00:09]} Bd6 {[%emt 0:00:02]} 10. Ne4 {[%emt 0:00:05]} f5 {[%emt 0:00:11]} 11. Nxd6 {[%emt 0:00:23]} cxd6 {[%emt 0:00:00]} 12. d4 {[%emt 0:00:13]} e4 {[%emt 0:00:03]} 13. Ng5 {[%emt 0:00:05]} d5 {[%emt 0:00:30]} 14. Nh3 {[%emt 0:00:31]} Bd7 {[%emt 0:00:20]} 15. a4 {[%emt 0:00:17]} Ne7 {[%emt 0:00:37]} 16. Be2 {[%emt 0:00:07]} a5 {[%emt 0:00:49]} 17. f3 {[%emt 0:00:16]} Ng6 {[%emt 0:00:11]} 18. fxe4 {[%emt 0:00:02]} fxe4 {[%emt 0:00:02]} 19. Nf4 {[%emt 0:00:11]} Nxf4 {[%emt 0:00:28]} 20. Bxf4 {[%emt 0:00:09]} Bc6 {[%emt 0:00:15]} 21. b3 {[%emt 0:00:07]} Nd7 {[%emt 0:00:03]} 22. Qd2 {[%emt 0:00:24]} Kh8 {[%emt 0:00:02]} 23. Rf2 {[%emt 0:00:03]} Qe7 {[%emt 0:00:19]} 24. Raf1 {[%emt 0:00:04]} Rae8 {[%emt 0:00:16]} 25. Qe3 {[%emt 0:00:01]} Qe6 {[%emt 0:00:27]} 26. h3 {[%emt 0:00:05]} Qg6 {[%emt 0:00:01]} 27. Kh2 {[%emt 0:00:05]} h6 {[%emt 0:00:02]} 28. Bc7 {[%emt 0:00:10]} Rxf2 {[%emt 0:00:06]} 29. Rxf2 {[%emt 0:00:01]} b6 {[%emt 0:00:03]} 30. Bg4 {[%emt 0:00:02]} Rf8 {[%emt 0:00:25]} 31. Rxf8+ {[%emt 0:00:07]} Nxf8 {[%emt 0:00:00]} 32. Bxb6 {[%emt 0:00:02]} Bd7 {[%emt 0:00:06]} 33. Qf4 {[%emt 0:00:24]} Bxg4 {[%emt 0:00:07]} 34. Qxf8+ {[%emt 0:00:01]} Kh7 {[%emt 0:00:02]} 35. hxg4 {[%emt 0:00:00]} Qxb6 {[%emt 0:00:01]} 36. Qf5+ {[%emt 0:00:01]} Kh8 {[%emt 0:00:22]} 37. Qc8+ {[%emt 0:00:05]} Kh7 {[%emt 0:00:01]} 38. Qf5+ {[%emt 0:00:01]} Kh8 {[%emt 0:00:01]} 39. Qxd5 {[%emt 0:00:00]} Qc7+ {[%emt 0:00:01]} 40. Qe5 {[%emt 0:00:02]} Qxc3 {[%emt 0:00:03]} 41. Qe8+ {[%emt 0:00:01]} Kh7 {[%emt 0:00:01]} 42. Qxe4+ {[%emt 0:00:01]} Kh8 {[%emt 0:00:01]} 43. d5 {[%emt 0:00:21]} Qxb3 {[%emt 0:00:01]} 44. d6 {[%emt 0:00:07]} Qd1 {[%emt 0:00:06]} 45. Qe8+ {[%emt 0:00:32]} Kh7 {[%emt 0:00:01]} 46. d7 {[%emt 0:00:00]} Qd6+ {[%emt 0:00:02]} 47. Kg1 {[%emt 0:00:03]} Qd4+ {[%emt 0:00:08]} 48. Kf1 {[%emt 0:00:01]} Qd1+ {[%emt 0:00:08]} 49. Kf2 {[%emt 0:00:01]} Qd4+ {[%emt 0:00:02]} 50. Kf3 {[%emt 0:00:01]} Qd1+ {[%emt 0:00:09]} 51. Ke4 {[%emt 0:00:01]} Qxa4+ {[%emt 0:00:02]} 52. Ke5 {[%emt 0:00:06]} Qb5+ $1 {[%emt 0:00:04]} 53. Ke6 {[%emt 0:00:03]} Qc4+ {[%emt 0:00:10]} 54. Ke7 {[%emt 0:00:02]} Qc5+ {[%emt 0:00:11]} 55. Kf7 {[%emt 0:00:06]} Qf2+ $1 {[%emt 0:00:01]} 56. Ke6 {[%emt 0:00:01]} Qb6+ {[%emt 0:00:05]} 57. Kd5 {[%emt 0:00:07]} Qb5+ {[%emt 0:00:03]} 58. Kd4 {[%emt 0:00:03]} Qb4+ {[%emt 0:00:03]} 59. Kd3 {[%emt 0:00:03]} Qb3+ {[%emt 0:00:01]} 60. Ke4 {[%emt 0:00:01]} Qc4+ {[%emt 0:00:14]} 61. Ke3 {[%emt 0:00:06]} Qc3+ {[%emt 0:00:03]} 62. Kf4 {[%emt 0:00:01]} Qd2+ {[%emt 0:00:02]} 63. Kg3 {[%emt 0:00:08]} Qd6+ {[%emt 0:00:01]} 64. Kf3 {[%emt 0:00:13]} Qd3+ {[%emt 0:00:04]} 65. Kf4 {[%emt 0:00:01]} Qd2+ {[%emt 0:00:01]} 66. Ke4 {[%emt 0:00:03]} Qe2+ {[%emt 0:00:05]} 67. Kd4 {[%emt 0:00:01]} Qd2+ {[%emt 0:00:01]} 68. Kc5 {[%emt 0:00:01]} Qb4+ {[%emt 0:00:02]} 69. Kc6 {[%emt 0:00:01]} Qc4+ {[%emt 0:00:02]} 70. Kb6 {[%emt 0:00:02]} Qb4+ {[%emt 0:00:01]} 71. Ka6 {[%emt 0:00:08]} Qc4+ {[%emt 0:00:01]} 72. Kb6 {[%emt 0:00:39]} Qb4+ {[%emt 0:00:02]} 73. Kc6 {[%emt 0:00:01]} Qc4+ {[%emt 0:00:01]} 74. Kd6 {[%emt 0:00:03]} Qd4+ {[%emt 0:00:04]} 75. Ke6 {[%emt 0:00:03]} Qe4+ {[%emt 0:00:06]} 76. Kd6 {[%emt 0:00:06]} Qd4+ {[%emt 0:00:01]} 77. Kc7 {[%emt 0:00:05]} Qc5+ {[%emt 0:00:02]} 78. Kb7 {[%emt 0:00:01]} (78. Kd8 $5 {[%cal Re8e4]} Qb6+ 79. Kc8 Qc6+ 80. Kd8 Qb6+ 81. Kc8 Qc6+ 82. Kd8 Qb6+ $11) 78... Qb5+ {[%emt 0:00:02]} 79. Ka7 {[%emt 0:00:08]} Qc5+ {[%emt 0:00:01]} 80. Ka6 {[%emt 0:00:01]} Qc6+ {[%emt 0:00:02]} 81. Kxa5 {[%emt 0:00:00]} Qc5+ {[%emt 0:00:03]} 82. Ka6 {[%emt 0:00:00]} Qc6+ {[%emt 0:00:02]} 83. Ka7 {[%emt 0:00:01]} Qc7+ {[%emt 0:00:06]} 84. Ka8 {[%emt 0:00:02]} Qc6+ {[%emt 0:00:01]} 85. Kb8 {[%emt 0:00:01]} Qb6+ {[%emt 0:00:00]} 86. Kc8 $1 {[%emt 0:00:00]} Qc6+ {[%emt 0:00:01]} 87. Kd8 {[%emt 0:00:02]} Qb6+ {[%emt 0:00:01]} 88. Kc8 {[%emt 0:00:00]} Qc6+ {[%emt 0:00:01]} 89. Kd8 {[%emt 0:00:01]} Qb6+ {[%emt 0:00:01]} 90. Kc8 {[%emt 0:00:00]} 1/2-1/2